bitfinex/quotes_BTCUSD_20260104
["timestamp","ask_amount","ask_price","bid_price","bid_amount"]
[1767537744519,0.06582877,91146.0,91142.0,0.04960079]
[1767537744845,0.01097152,91145.0,91142.0,0.0495555]
[1767537745917,0.06582877,91146.0,91142.0,0.06052739]
[1767537746322,0.0109714,91146.0,91143.0,0.04960079]
[1767537746528,0.06582888,91147.0,91143.0,0.04960079]
[1767537746683,0.06582865,91146.0,91143.0,0.04960079]
[1767537748049,0.0109714,91146.0,91143.0,0.04960079]
[1767537748606,0.06582888,91147.0,91143.0,0.04960079]
[1767537748815,0.06582888,91147.0,91142.0,0.06583116]
[1767537748977,0.06582888,91147.0,91142.0,0.06555716]
[1767537749207,0.0109714,91146.0,91142.0,0.06555716]
[1767537749708,0.06582854,91146.0,91143.0,0.04960079]
[1767537749929,0.06582888,91147.0,91143.0,0.04960079]
[1767537750154,0.06582888,91147.0,91143.0,0.06057255]
[1767537750329,0.06582888,91147.0,91143.0,0.04960079]
[1767537751065,0.0658285,91146.0,91143.0,0.04960079]
[1767537752132,0.21943057,91145.0,91136.0,0.05486283]
[1767537752337,0.05486306,91136.0,91135.0,5.94e-05]
[1767537753738,0.06583649,91135.0,91131.0,0.00988953]
[1767537753954,0.06583649,91135.0,91131.0,0.00960379]
[1767537754785,0.06583567,91136.0,91135.0,0.000999]
[1767537754932,0.01097237,91138.0,91135.0,0.000999]
[1767537755132,0.06583592,91136.0,91131.0,0.06583809]
[1767537755477,0.01097261,91136.0,91132.0,0.06583849]
[1767537755663,0.06583512,91137.0,91133.0,0.01097297]
[1767537755860,0.01097249,91137.0,91136.0,0.000999]
[1767537756062,0.06583494,91137.0,91136.0,0.000999]
[1767537756407,0.04982217,91136.0,91133.0,0.01097297]
[1767537756689,0.06583444,91138.0,91133.0,0.05486441]
[1767537756843,0.04982217,91137.0,91133.0,0.00486441]
[1767537757048,0.03767411,91136.0,91133.0,0.06583737]
[1767537757266,0.03767411,91136.0,91132.0,0.06583745]
[1767537757673,0.03767411,91136.0,91133.0,0.0658375]
[1767537757835,0.02483946,91139.0,91136.0,0.01097261]
[1767537758028,0.02483946,91139.0,91136.0,0.0658352]
[1767537758444,0.03581147,91141.0,91137.0,0.06583454]
[1767537758636,0.02483946,91141.0,91138.0,0.06583422]
[1767537759580,0.02483946,91141.0,91139.0,0.05486091]
[1767537759760,0.02483946,91141.0,91138.0,0.065834]
[1767537760160,0.02483946,91141.0,91138.0,0.01097237]
[1767537760373,0.06583138,91142.0,91138.0,0.01097237]
[1767537760576,0.01097189,91142.0,91139.0,0.04979212]
[1767537761512,0.06583147,91142.0,91139.0,0.04979212]
[1767537761934,0.02196,91143.0,91139.0,0.11562513]
[1767537762070,0.08779064,91143.0,91140.0,0.04979212]
[1767537762676,0.05485954,91142.0,91140.0,0.04979212]
[1767537762904,0.08779064,91143.0,91140.0,0.04979212]
[1767537763126,0.03293176,91143.0,91140.0,0.04979212]
[1767537763335,0.02196,91143.0,91140.0,0.06076425]
[1767537763575,0.01097152,91145.0,91143.0,0.04979212]
[1767537765740,0.05485761,91146.0,91143.0,0.04979212]
[1767537766041,0.06582901,91146.0,91143.0,0.04979212]
[1767537766242,0.06582901,91146.0,91143.0,0.04950639]
[1767537766552,0.06582901,91146.0,91142.0,0.06583117]
[1767537766553,0.05485704,91146.0,91144.0,0.04950641]
[1767537766752,0.05485704,91146.0,91144.0,0.04850741]
[1767537766960,0.06582773,91147.0,91144.0,0.04822171]
[1767537767164,0.05485729,91146.0,91144.0,0.04822171]
[1767537768176,0.05485764,91145.0,91144.0,0.04822171]
[1767537768728,0.05485729,91146.0,91144.0,0.04822171]
[1767537770798,0.06582786,91147.0,91144.0,0.04822171]
[1767537771109,0.06582752,91148.0,91146.0,0.05079112]
[1767537771256,0.02196,91149.0,91146.0,0.05079112]
[1767537771459,0.02196,91149.0,91146.0,0.04979212]
[1767537772218,0.08778628,91149.0,91146.0,0.04979212]
[1767537772983,0.03293104,91149.0,91146.0,0.04979212]
[1767537773408,0.02196,91149.0,91146.0,0.04979212]
[1767537774031,0.02201149,91149.0,91147.0,0.04979212]
[1767537774458,0.02101249,91149.0,91146.0,0.06582834]
[1767537774656,0.02101249,91149.0,91147.0,0.04979212]
[1767537776920,0.02101249,91149.0,91148.0,0.04979212]
[1767537777836,0.02101249,91149.0,91145.0,0.01044395]
[1767537778066,5.149e-05,91149.0,91145.0,0.04979212]
[1767537778653,0.06587777,91149.0,91146.0,0.04979212]
[1767537779071,0.01102253,91149.0,91146.0,0.04979212]
[1767537779571,5.149e-05,91149.0,91146.0,0.04950641]
[1767537780050,5.149e-05,91149.0,91146.0,0.04922072]
[1767537780255,5.149e-05,91149.0,91146.0,0.04893504]
[1767537780455,5.149e-05,91149.0,91146.0,0.11476341]
[1767537780652,0.0548559,91148.0,91146.0,0.04893504]
[1767537780893,0.0658287,91146.0,91142.0,0.04974397]
[1767537781108,0.0658289,91146.0,91141.0,0.11557562]
[1767537781308,0.06582772,91147.0,91142.0,0.01097189]
[1767537781487,0.0658289,91146.0,91141.0,0.11557562]
[1767537781971,0.06582772,91147.0,91142.0,0.11557497]
[1767537782174,0.0109714,91146.0,91142.0,0.01097189]
[1767537782534,0.06582775,91147.0,91142.0,0.0658313]
[1767537782675,0.0109714,91146.0,91142.0,0.06583123]
[1767537783297,0.0109714,91146.0,91142.0,0.01097189]
[1767537783474,0.0109714,91146.0,91141.0,0.065832]
[1767537783680,0.01097164,91144.0,91140.0,0.01097213]
[1767537783903,0.06582926,91145.0,91140.0,0.01097213]
[1767537783904,0.06582926,91145.0,91140.0,0.06583228]
[1767537784821,0.06582926,91145.0,91141.0,0.01097201]
[1767537785167,0.06582926,91145.0,91141.0,0.06583205]
[1767537785364,0.0658299,91144.0,91140.0,0.06583228]
[1767537785584,0.01097164,91144.0,91140.0,0.06583228]
[1767537785809,0.01097189,91142.0,91137.0,0.02196]
[1767537786009,0.05486005,91141.0,91136.0,0.01097261]
[1767537786224,0.06583292,91140.0,91136.0,0.06583544]
[1767537786429,0.06583259,91141.0,91137.0,0.01097249]
[1767537786625,0.01097201,91141.0,91137.0,0.06583451]
[1767537787601,0.06583108,91143.0,91138.0,0.06583401]
[1767537787807,0.01097176,91143.0,91139.0,0.06583342]
[1767537788528,0.06583072,91143.0,91139.0,0.01097225]
[1767537788869,0.01097176,91143.0,91139.0,0.01097225]
[1767537789048,0.06583076,91143.0,91139.0,0.01097225]
[1767537789366,0.01097176,91143.0,91139.0,0.06583342]
[1767537789581,0.06582994,91144.0,91140.0,0.06583277]
[1767537790075,0.06582921,91145.0,91141.0,0.01097201]
[1767537790256,0.06583006,91144.0,91140.0,0.01097213]
[1767537790430,0.0658306,91143.0,91139.0,0.06583342]
[1767537790632,0.06583006,91144.0,91139.0,0.06583342]
[1767537790997,0.06583215,91141.0,91136.0,0.03293261]
[1767537791311,0.01097213,91140.0,91136.0,0.08779561]
[1767537791510,0.01097201,91141.0,91136.0,0.08779561]
[1767537791710,0.06583151,91142.0,91137.0,0.01097249]
[1767537792119,0.06583151,91142.0,91138.0,0.01097237]
[1767537793089,0.06583235,91141.0,91137.0,0.01097249]
[1767537793296,0.06583151,91142.0,91138.0,0.06583398]
[1767537793670,0.01097201,91141.0,91137.0,0.06583488]
[1767537793869,0.01097201,91141.0,91137.0,0.0655492]
[1767537794067,0.06583151,91142.0,91138.0,0.01068668]
[1767537794285,0.01097189,91142.0,91138.0,0.01068668]
[1767537794702,0.06583143,91142.0,91138.0,0.01068668]
[1767537795431,0.06583143,91142.0,91137.0,0.0655492]
[1767537795810,0.01097201,91141.0,91137.0,0.0655492]
[1767537796576,0.06583206,91141.0,91136.0,0.0658345]
[1767537796943,0.01097201,91141.0,91137.0,0.06583481]
[1767537797133,0.06583219,91141.0,91137.0,0.06583488]
[1767537797294,0.01097201,91141.0,91137.0,0.06583491]
[1767537797713,0.06583221,91141.0,91137.0,0.01097249]
[1767537797914,0.06583221,91141.0,91136.0,0.06583512]
[1767537798145,0.06583209,91141.0,91137.0,0.06583473]
[1767537798348,0.06583209,91141.0,91137.0,0.01097249]
[1767537798550,0.06583283,91140.0,91136.0,0.06583512]
[1767537798750,0.01097249,91137.0,91131.0,0.03293321]
[1767537798955,0.00997349,91137.0,91133.0,0.06583772]
[1767537799178,0.06483614,91137.0,91133.0,0.01097297]
[1767537799309,0.01097261,91136.0,91132.0,0.06583835]
[1767537799496,0.06483609,91137.0,91132.0,0.06583835]
[1767537799702,0.00997349,91137.0,91133.0,0.06583773]
[1767537800545,0.06583432,91138.0,91134.0,0.06583689]
[1767537801843,0.06583432,91138.0,91134.0,0.01097285]
[1767537802526,0.06583497,91137.0,91133.0,0.01097297]
[1767537803797,0.01097249,91137.0,91133.0,0.0658376]
[1767537804493,0.06583432,91138.0,91134.0,0.01097285]
[1767537805450,0.01097261,91136.0,91132.0,0.0658374]
[1767537805674,0.000999,91134.0,91132.0,0.0658374]
[1767537805898,0.06583545,91137.0,91133.0,0.06583783]
[1767537806328,0.06583545,91137.0,91133.0,0.01097297]
[1767537806491,0.06583545,91137.0,91134.0,0.000999]
[1767537807230,0.01097249,91137.0,91134.0,0.000999]
[1767537807434,0.06583533,91138.0,91134.0,0.06683586]
[1767537807734,0.06583533,91138.0,91134.0,0.01197185]
[1767537808656,0.06583533,91138.0,91134.0,0.0116862]
[1767537811575,0.06583533,91138.0,91134.0,0.00071335]
[1767537811778,0.06583533,91138.0,91134.0,0.05557747]
[1767537811939,0.06583533,91138.0,91134.0,0.00071335]
[1767537812889,0.06583533,91138.0,91134.0,0.0116862]
[1767537813453,0.06583533,91138.0,91134.0,0.00071335]
[1767537813650,0.05486366,91135.0,91134.0,3.5e-07]
[1767537814959,0.05486343,91136.0,91134.0,3.5e-07]
[1767537815878,0.06583495,91137.0,91134.0,3.5e-07]
[1767537816082,0.06583469,91138.0,91136.0,0.000713]
[1767537816286,0.01097237,91138.0,91136.0,0.000713]
[1767537816487,0.05486245,91137.0,91136.0,0.000713]
[1767537816685,0.05486366,91135.0,91134.0,3.5e-07]
[1767537822536,0.01097213,91140.0,91134.0,3.5e-07]
[1767537822537,0.21943008,91146.0,91135.0,0.000713]
[1767537822766,0.05486218,91138.0,91134.0,3.5e-07]
[1767537823077,0.06583455,91138.0,91134.0,3.5e-07]
[1767537823243,0.05486199,91138.0,91134.0,3.5e-07]
[1767537823647,0.06583436,91138.0,91134.0,3.5e-07]
[1767537823845,0.01097249,91137.0,91134.0,3.5e-07]
[1767537824108,0.06583506,91137.0,91134.0,3.5e-07]
[1767537824436,0.06583436,91138.0,91134.0,3.5e-07]
[1767537825016,0.06583436,91138.0,91134.0,0.0109732]
[1767537825213,0.06583436,91138.0,91134.0,0.01068758]
[1767537825420,0.06583436,91138.0,91134.0,0.01040196]
[1767537826027,0.06583436,91138.0,91133.0,0.0658378]
[1767537826426,0.01097261,91136.0,91131.0,0.06583869]
[1767537826736,0.06583539,91137.0,91132.0,0.0658385]
[1767537826890,0.06583539,91137.0,91133.0,0.06583773]
[1767537828131,0.01097237,91138.0,91134.0,0.06583696]
[1767537828825,0.06583429,91138.0,91133.0,0.06583773]
[1767537830133,0.06583429,91138.0,91130.0,0.00255847]
[1767537830278,0.06583429,91138.0,91133.0,0.01097297]
[1767537830639,0.06583429,91138.0,91133.0,0.06583743]
[1767537831681,0.06583499,91137.0,91133.0,0.01097297]
[1767537832003,0.06583396,91139.0,91134.0,0.06583711]
[1767537832962,0.06583363,91139.0,91135.0,0.06583612]
[1767537833168,0.01097225,91139.0,91135.0,0.06583612]
[1767537834082,0.01097237,91138.0,91133.0,0.06583726]
[1767537834215,0.01097237,91138.0,91134.0,0.06583684]
[1767537834773,0.06583441,91138.0,91134.0,0.01097285]
[1767537835949,0.0658332,91140.0,91138.0,0.000713]
[1767537836115,0.05486125,91139.0,91138.0,0.000713]
[1767537836337,0.0658335,91139.0,91135.0,0.06583595]
[1767537837218,0.0658332,91140.0,91136.0,0.01097261]
[1767537837991,0.04656461,91139.0,91135.0,0.04047839]
[1767537838259,0.04656461,91139.0,91136.0,0.01097261]
[1767537838426,0.05753686,91139.0,91135.0,0.05145112]
[1767537838848,0.05753686,91139.0,91135.0,0.05116545]
[1767537839048,0.01097225,91139.0,91135.0,0.05116545]
[1767537839388,0.05486025,91141.0,91135.0,0.05116545]
[1767537839389,0.06583253,91141.0,91139.0,0.000713]
[1767537839658,0.01097213,91140.0,91136.0,0.06583557]
[1767537840225,0.01097176,91143.0,91140.0,0.000713]
[1767537840414,0.05485948,91142.0,91140.0,0.000713]
[1767537840611,0.06583102,91143.0,91138.0,0.06583308]
[1767537840904,0.06582989,91144.0,91140.0,0.06583237]
[1767537840905,0.01097164,91144.0,91140.0,0.06583237]
[1767537841115,0.06582938,91145.0,91141.0,0.06583159]
[1767537841765,0.03293128,91147.0,91142.0,0.06583116]
[1767537841967,0.03293128,91147.0,91145.0,0.00061297]
[1767537841968,0.02196,91147.0,91145.0,0.00061297]
[1767537842195,0.01097116,91148.0,91145.0,0.00061297]
[1767537842353,0.02196,91147.0,91144.0,0.01097164]
[1767537842558,0.02196,91147.0,91144.0,0.0658298]
[1767537843401,0.021347,91147.0,91144.0,0.01058564]
[1767537843768,0.021347,91147.0,91144.0,0.06544354]
[1767537845472,0.021347,91147.0,91144.0,0.01058564]
[1767537846011,0.021347,91147.0,91144.0,0.06544368]
[1767537847065,0.021347,91147.0,91143.0,0.11166303]
[1767537847066,0.03231828,91147.0,91143.0,0.11166303]
[1767537847319,0.021347,91147.0,91144.0,0.06582981]
[1767537848904,0.021347,91147.0,91144.0,0.01097164]
[1767537849206,0.021347,91147.0,91143.0,0.11166303]
[1767537849799,5.149e-05,91149.0,91147.0,0.04583352]
[1767537850000,0.06582499,91151.0,91149.0,0.04616803]
[1767537850203,0.06582499,91151.0,91149.0,0.04583352]
[1767537850589,0.06582465,91152.0,91149.0,0.04583352]
[1767537851028,0.06582338,91153.0,91149.0,0.04583352]
[1767537851868,0.01097032,91155.0,91149.0,0.05680456]
[1767537852107,0.06582353,91153.0,91149.0,0.04583352]
[1767537853712,0.06582281,91154.0,91149.0,0.11165929]
[1767537854121,0.06582281,91154.0,91150.0,0.01097092]
[1767537854342,0.01097032,91155.0,91154.0,0.00023397]
[1767537854540,0.06582194,91155.0,91154.0,0.00019397]
[1767537854813,0.06582194,91155.0,91151.0,0.0109708]
[1767537854970,0.06582276,91154.0,91150.0,0.11165892]
[1767537855302,0.06582355,91153.0,91150.0,0.04583352]
[1767537855505,0.06582412,91152.0,91148.0,0.06582696]
[1767537855632,0.06582412,91152.0,91148.0,0.01097116]
[1767537855829,0.06582412,91152.0,91147.0,0.11166119]
[1767537856129,0.06582488,91151.0,91147.0,0.04583352]
[1767537856350,0.06582488,91151.0,91147.0,0.0568048]
[1767537856756,0.06582488,91151.0,91147.0,0.04583352]
[1767537856757,0.01097092,91150.0,91147.0,0.04583352]
[1767537857134,0.06582488,91151.0,91147.0,0.10068995]
[1767537858364,0.06582488,91151.0,91147.0,0.11166123]
[1767537858696,0.0109708,91151.0,91147.0,0.11166123]
[1767537860093,0.0658252,91151.0,91147.0,0.11166118]
[1767537860238,0.0658252,91151.0,91147.0,0.0568048]
[1767537860944,0.0109708,91151.0,91147.0,0.11166115]
[1767537861419,0.06582485,91151.0,91147.0,0.11166115]
[1767537865860,0.06582559,91150.0,91147.0,0.04583352]
[1767537866075,0.01097092,91150.0,91147.0,0.04583352]
[1767537866295,0.06582485,91151.0,91147.0,0.11166106]
[1767537866991,0.06582417,91152.0,91148.0,0.05485566]
[1767537867279,0.06582417,91152.0,91148.0,0.06582682]
[1767537867416,0.06582357,91153.0,91149.0,0.05485522]
[1767537867623,0.06582357,91153.0,91148.0,0.06582682]
[1767537867850,0.05485355,91152.0,91148.0,0.06554118]
[1767537868605,0.06582423,91152.0,91148.0,0.06554118]
[1767537868813,0.06582308,91154.0,91152.0,0.00071339]
[1767537869105,0.01097044,91154.0,91151.0,0.05485396]
[1767537870132,0.01025644,91154.0,91151.0,0.05485396]
[1767537871442,0.06510877,91154.0,91150.0,0.0658255]
[1767537872050,0.01025644,91154.0,91151.0,0.05485401]
[1767537872411,0.01025644,91154.0,91150.0,0.0658255]
[1767537873052,0.05485205,91155.0,91151.0,0.06582479]
[1767537873208,0.06582237,91155.0,91151.0,0.11154864]
[1767537873420,0.06582237,91155.0,91151.0,0.06582479]
[1767537873758,0.06582237,91155.0,91151.0,0.0658248]
[1767537874126,0.06582237,91155.0,91150.0,0.0658255]
[1767537874127,0.06582295,91154.0,91150.0,0.0658255]
[1767537874501,0.01097044,91154.0,91150.0,0.0658255]
[1767537874697,0.06582237,91155.0,91151.0,0.05485396]
[1767537874939,0.06582237,91155.0,91150.0,0.0658255]
[1767537875149,0.06582237,91155.0,91150.0,0.11423438]
[1767537875552,0.06582124,91156.0,91151.0,0.06582462]
[1767537875839,0.0658215,91157.0,91153.0,0.01097056]
[1767537876722,0.0109702,91156.0,91152.0,0.06582366]
[1767537876865,0.0109702,91156.0,91152.0,0.04094024]
[1767537877507,0.0658215,91157.0,91153.0,0.05485273]
[1767537877861,0.0658215,91157.0,91152.0,0.05191092]
[1767537878527,0.0658215,91156.0,91152.0,0.05191092]
[1767537878730,0.0658215,91157.0,91153.0,0.01097056]
[1767537878976,0.05484972,91159.0,91157.0,0.04840888]
[1767537879176,0.06581956,91159.0,91155.0,0.01097032]
[1767537879337,0.06581956,91159.0,91155.0,0.0593792]
[1767537879517,0.06581956,91159.0,91155.0,0.04840888]
[1767537879729,0.01096996,91158.0,91155.0,0.04840888]
[1767537879928,0.06582122,91156.0,91152.0,0.01097068]
[1767537880153,0.05485162,91155.0,91151.0,0.06582436]
[1767537880371,0.06582194,91155.0,91151.0,0.0109708]
[1767537880732,0.06582279,91154.0,91150.0,0.0658254]
[1767537880965,0.01097044,91154.0,91150.0,0.06582507]
[1767537881586,0.01097032,91155.0,91151.0,0.06582483]
[1767537882234,0.01097032,91155.0,91151.0,0.06553919]
[1767537882621,0.01097032,91155.0,91151.0,0.06525357]
[1767537882824,0.0109702,91156.0,91152.0,0.06582405]
[1767537883030,0.01097008,91157.0,91152.0,0.06582405]
[1767537883248,0.06582062,91157.0,91153.0,0.01097056]
[1767537883867,0.0658215,91156.0,91151.0,0.01039954]
[1767537884053,0.0658215,91156.0,91152.0,0.06582408]
[1767537885451,0.0658215,91156.0,91152.0,0.01097068]
[1767537885750,0.0658215,91156.0,91152.0,0.06582398]
[1767537886456,0.0109702,91156.0,91153.0,0.05485281]
[1767537886860,0.06582162,91157.0,91156.0,0.000999]
[1767537887202,0.06582162,91157.0,91153.0,0.01097056]
[1767537887756,0.01097008,91157.0,91153.0,0.01097056]
[1767537888316,0.065821,91157.0,91153.0,0.01097056]
[1767537888986,0.06582131,91156.0,91152.0,0.06582398]
[1767537889179,0.065821,91157.0,91153.0,0.0658233]
[1767537889331,0.065821,91157.0,91153.0,0.01097056]
[1767537889679,0.01097008,91157.0,91154.0,0.05485216]
[1767537890184,0.0109702,91156.0,91152.0,0.06582397]
[1767537891737,0.06582142,91156.0,91152.0,0.06582397]
[1767537892354,0.06582142,91156.0,91149.0,0.24827069]
[1767537892532,0.06582142,91156.0,91152.0,0.05485328]
[1767537893290,0.06582142,91156.0,91152.0,0.06582396]
[1767537893628,0.06582142,91156.0,91152.0,0.01097068]
[1767537894954,0.06582231,91155.0,91150.0,0.06582551]
[1767537895428,0.05485247,91154.0,91150.0,0.06582551]
[1767537895920,0.05485247,91154.0,91150.0,0.01097092]
[1767537896074,0.06582348,91153.0,91149.0,0.0658261]
[1767537896271,0.06582416,91152.0,91148.0,0.06582658]
[1767537896677,0.06582426,91152.0,91148.0,0.06582658]
[1767537897112,0.06582426,91152.0,91148.0,0.01097116]
[1767537897427,0.06582348,91153.0,91149.0,0.01097104]
[1767537897628,0.06582272,91154.0,91149.0,0.01097104]
[1767537897777,0.06582272,91154.0,91149.0,0.06554064]
[1767537897978,0.01097044,91154.0,91150.0,0.06582498]
[1767537898179,0.01097056,91153.0,91149.0,0.06554064]
[1767537899298,0.06582411,91152.0,91148.0,0.01097116]
[1767537899504,0.01097068,91152.0,91148.0,0.06582658]
[1767537900323,0.01097032,91155.0,91148.0,0.06582658]
[1767537900324,0.06582202,91155.0,91152.0,0.000999]
[1767537900826,0.05485343,91152.0,91147.0,0.00050383]
[1767537901090,0.0109708,91151.0,91147.0,0.00050383]
[1767537901307,0.06582516,91151.0,91147.0,0.06633152]
[1767537901472,0.01097092,91150.0,91147.0,0.00050383]
[1767537901675,0.06582603,91150.0,91147.0,0.00050383]
[1767537902253,0.05485561,91149.0,91147.0,0.00050383]
[1767537902569,0.06582603,91150.0,91147.0,0.00050383]
[1767537902570,0.23038946,91150.0,91147.0,0.00050383]
[1767537902751,0.05485568,91149.0,91147.0,0.00050383]
[1767537902950,0.065825,91151.0,91147.0,0.00050383]
[1767537903154,0.06582607,91150.0,91147.0,0.00050383]
[1767537903330,0.05485564,91149.0,91147.0,0.00050383]
[1767537903530,0.05485583,91148.0,91147.0,0.00050383]
[1767537904989,0.05485583,91148.0,91139.0,0.01097225]
[1767537904990,0.06583185,91142.0,91138.0,0.01097237]
[1767537905185,4.354e-05,91142.0,91137.0,0.06583485]
[1767537905401,0.01097225,91139.0,91132.0,0.01097309]
[1767537905611,0.05486362,91136.0,91132.0,5.149e-05]
[1767537905809,0.01097261,91136.0,91132.0,0.01102458]
[1767537906009,0.06583519,91137.0,91132.0,0.06588956]
[1767537906266,0.06583519,91137.0,91121.0,0.21948667]
[1767537906267,0.06678627,91132.0,91126.0,0.01097381]
[1767537906483,0.00094751,91132.0,91128.0,0.04654563]
[1767537906640,0.06678653,91132.0,91128.0,0.04654563]
[1767537906860,0.06583814,91133.0,91129.0,0.11238628]
[1767537907058,0.01097261,91136.0,91132.0,0.01097309]
[1767537907288,0.06583498,91137.0,91132.0,0.06583799]
[1767537907686,0.06583498,91137.0,91133.0,0.01097297]
[1767537907883,0.01097237,91138.0,91134.0,0.01097285]
[1767537908085,0.06583355,91139.0,91134.0,0.06583706]
[1767537908288,0.01097225,91139.0,91135.0,0.01097273]
[1767537908492,0.01097213,91140.0,91136.0,0.01097261]
[1767537908838,0.03291276,91141.0,91138.0,0.057518]
[1767537908970,0.05581045,91138.0,91130.0,0.01097333]
[1767537909185,0.06583575,91136.0,91132.0,0.05751872]
[1767537909382,0.01097273,91135.0,91132.0,0.04654563]
[1767537909874,0.06583671,91135.0,91132.0,0.04654563]
[1767537910017,0.05486431,91134.0,91132.0,0.04559763]
[1767537910223,0.01097273,91135.0,91134.0,5.1e-05]
[1767537910425,0.01097273,91135.0,91132.0,0.04559763]
[1767537910622,0.06583586,91136.0,91132.0,0.04559763]
[1767537910924,0.01097261,91136.0,91132.0,0.11143616]
[1767537911292,0.06583577,91136.0,91132.0,0.11143616]
[1767537911530,0.01097261,91136.0,91132.0,0.05657072]
[1767537911929,0.06583644,91135.0,91132.0,0.04559763]
[1767537912128,0.01097273,91135.0,91132.0,0.04559763]
[1767537912542,0.06583569,91136.0,91132.0,0.04559763]
[1767537912978,0.06583655,91135.0,91132.0,0.04559763]
[1767537913682,0.01097297,91133.0,91130.0,0.04654563]
[1767537914086,0.0658377,91134.0,91130.0,0.04654563]
[1767537914262,0.06583651,91135.0,91131.0,0.04654563]
[1767537914439,0.06583651,91135.0,91131.0,0.10141167]
[1767537914644,0.01097249,91137.0,91135.0,0.000999]
[1767537914867,0.01097261,91136.0,91132.0,0.01097309]
[1767537915079,0.01097261,91136.0,91132.0,0.06583851]
[1767537915443,0.06583574,91136.0,91132.0,0.01097309]
[1767537915647,0.01097249,91137.0,91133.0,0.01097297]
[1767537915848,0.00997361,91136.0,91132.0,0.06583855]
[1767537916286,0.06483671,91136.0,91132.0,0.06583855]
[1767537916503,0.00997361,91136.0,91132.0,0.06583855]
[1767537916694,0.01097249,91137.0,91133.0,0.01097297]
[1767537917209,0.01097249,91137.0,91133.0,0.06583764]
[1767537917356,0.06583502,91137.0,91133.0,0.06583764]
[1767537918473,0.06583437,91138.0,91134.0,0.01097285]
[1767537918873,0.06583424,91138.0,91133.0,0.01097297]
[1767537919079,0.01097249,91137.0,91133.0,0.01097297]
[1767537919299,0.01097249,91137.0,91133.0,0.06583761]
[1767537919502,0.01097249,91137.0,91133.0,0.01097297]
[1767537920139,0.06583519,91137.0,91133.0,0.01097297]
[1767537920294,0.06583509,91137.0,91133.0,0.01097297]
[1767537920497,0.06583584,91136.0,91131.0,0.05751884]
[1767537921104,0.06583721,91134.0,91131.0,0.04654563]
[1767537921303,0.01097285,91134.0,91131.0,0.04654563]
[1767537921484,0.000999,91131.0,91128.0,0.04654563]
[1767537921690,0.01097309,91132.0,91128.0,0.04654563]
[1767537921892,0.01097297,91133.0,91130.0,0.04654563]
[1767537923050,0.0658379,91133.0,91130.0,0.04554663]
[1767537923192,0.01097297,91133.0,91130.0,0.04554663]
[1767537924187,0.06583788,91133.0,91130.0,0.04554663]
[1767537924406,0.01097309,91132.0,91126.0,4.354e-05]
[1767537924610,0.0548745,91117.0,91116.0,0.0001512]
[1767537925030,0.01097465,91119.0,91116.0,0.0001512]
[1767537925238,0.0548745,91117.0,91116.0,0.0001512]
[1767537925459,0.01097465,91119.0,91116.0,0.0001512]
[1767537925685,0.0658473,91120.0,91116.0,0.01112622]
[1767537925882,0.01097441,91121.0,91116.0,0.01112622]
[1767537926091,0.06584629,91122.0,91118.0,0.01097477]
[1767537926421,0.01097417,91123.0,91119.0,0.11239305]
[1767537926853,0.01097417,91123.0,91119.0,0.05752028]
[1767537927024,0.06584532,91123.0,91119.0,0.01097465]
[1767537927386,0.06584455,91124.0,91120.0,0.01097453]
[1767537927589,0.01097405,91124.0,91120.0,0.01097453]
[1767537927810,0.06584509,91123.0,91119.0,0.06584761]
[1767537928156,0.06584509,91123.0,91119.0,0.06584786]
[1767537928292,0.06584506,91123.0,91119.0,0.06584786]
[1767537928471,0.01097417,91123.0,91119.0,0.01097465]
[1767537929086,0.06584529,91123.0,91119.0,0.01097465]
[1767537929218,0.06584445,91124.0,91119.0,0.01097465]
[1767537929418,0.06584445,91124.0,91120.0,0.01097453]
[1767537930468,0.06584445,91124.0,91119.0,0.06584739]
[1767537930677,0.01097381,91126.0,91120.0,0.01097453]
[1767537930884,0.01097393,91125.0,91121.0,0.06580215]
[1767537931168,0.01097381,91126.0,91122.0,0.0655601]
[1767537931373,0.01097381,91126.0,91122.0,0.0106887]
[1767537931511,0.000999,91122.0,91119.0,0.04593153]
[1767537931735,0.01097441,91121.0,91117.0,0.0109749]
[1767537931922,0.01097453,91120.0,91116.0,0.05502579]
[1767537932577,0.01097453,91120.0,91116.0,0.06600081]
[1767537932777,0.06584777,91120.0,91116.0,0.0001512]
[1767537932972,0.01097477,91118.0,91114.0,0.11178294]
[1767537933184,0.0109749,91117.0,91114.0,0.04593153]
[1767537933383,0.01097465,91119.0,91114.0,0.01097526]
[1767537933594,0.01097465,91119.0,91115.0,0.05487535]
[1767537933820,0.05487493,91117.0,91112.0,0.05690703]
[1767537933971,0.01097465,91119.0,91117.0,0.000151]
[1767537934173,0.06584866,91118.0,91114.0,0.01097526]
[1767537934396,0.01097477,91118.0,91114.0,0.01097526]
[1767537934612,0.0658492,91118.0,91113.0,0.06585175]
[1767537934817,0.0658492,91118.0,91114.0,0.01097526]
[1767537935217,0.0109749,91117.0,91113.0,0.06585175]
[1767537935945,0.06584988,91117.0,91112.0,0.06585189]
[1767537936098,0.06584988,91117.0,91113.0,0.06585218]
[1767537936298,0.0109749,91117.0,91113.0,0.06585218]
[1767537936504,0.01097465,91119.0,91117.0,0.000151]
[1767537936700,0.01097465,91119.0,91115.0,0.01097514]
[1767537936938,0.01097465,91119.0,91115.0,0.06585044]
[1767537937493,0.01097477,91118.0,91114.0,0.06585156]
[1767537937711,0.06584914,91118.0,91114.0,0.06585137]
[1767537937914,0.01097477,91118.0,91114.0,0.06585137]
[1767537938111,0.06584992,91117.0,91112.0,0.0658529]
[1767537938333,0.06585069,91116.0,91112.0,0.06585287]
[1767537938553,0.06584951,91117.0,91113.0,0.01097538]
[1767537938854,0.01097526,91114.0,91111.0,0.04645932]
[1767537939182,0.0109749,91117.0,91114.0,0.000151]
[1767537939358,0.0548752,91116.0,91114.0,0.000151]
[1767537939534,0.06584987,91117.0,91112.0,0.06585272]
[1767537939955,0.0109749,91117.0,91113.0,0.06585219]
[1767537940163,0.0658494,91117.0,91113.0,0.01097538]
[1767537940368,0.0658502,91116.0,91112.0,0.06585272]
[1767537940846,0.0658502,91116.0,91112.0,0.11231204]
[1767537941231,0.01097477,91118.0,91114.0,0.01097526]
[1767537941686,0.06584888,91118.0,91114.0,0.01097526]
[1767537942181,0.06584825,91119.0,91115.0,0.06585068]
[1767537942391,0.06584825,91119.0,91115.0,0.01097514]
[1767537942727,0.05487249,91121.0,91119.0,0.000151]
[1767537943194,0.01097465,91119.0,91115.0,0.06584965]
[1767537943376,0.06584822,91119.0,91115.0,0.01097514]
[1767537943590,0.06584743,91120.0,91116.0,0.01097502]
[1767537943895,0.01097465,91119.0,91112.0,0.0109755]
[1767537944059,0.04764655,91115.0,91113.0,0.05487675]
[1767537944424,0.04749555,91115.0,91113.0,0.05487675]
[1767537944638,0.04749555,91115.0,91112.0,0.06585286]
[1767537944787,0.04749555,91115.0,91114.0,0.0548763]
[1767537945106,0.00407964,91119.0,91115.0,0.01097514]
[1767537945312,0.00407964,91119.0,91116.0,0.05487507]
[1767537945512,0.00407964,91119.0,91117.0,0.05487435]
[1767537945894,0.00407964,91119.0,91116.0,0.06585009]
[1767537946096,0.00407964,91119.0,91117.0,0.05487448]
[1767537946639,0.00407964,91119.0,91115.0,0.06585078]